lending/lending_fUSD_20250719
["ID","MTS","AMOUNT","RATE_DAILY","PERIOD"]
[373169254,1752888715232,-1063.27,0.00020164,2]
[373169255,1752888715242,-879.53,0.00020164,2]
[373169256,1752888715251,-902.36,0.00020164,2]
[373169257,1752888715261,-1098.83,0.00020164,2]
[373169258,1752888715272,-3926.79,0.00020164,2]
[373169259,1752888715282,-531.39,0.00020164,2]
[373169260,1752888715292,-1334.35,0.00020164,2]
[373169261,1752888715303,-4173.98,0.00020164,2]
[373169262,1752888715313,-1112.34,0.00020164,2]
[373169263,1752888715322,-1019.75,0.00020164,2]
[373169264,1752888715331,-531.52,0.00020164,2]
[373169265,1752888715341,-878.37,0.00020164,2]
[373169266,1752888715351,-4040.09,0.00020164,2]
[373169267,1752888715362,-536.67,0.00020164,2]
[373169268,1752888715371,-1009.72,0.00020164,2]
[373169269,1752888715381,-1164.19,0.00020164,2]
[373169270,1752888715391,-3332.41,0.00020164,2]
[373169271,1752888715401,-1912.01,0.00020164,2]
[373169272,1752888715411,-480.0,0.00020164,2]
[373169273,1752888715421,-1204.49,0.00020164,2]
[373169274,1752888715432,-480.0,0.00020164,2]
[373169275,1752888715442,-2333.35,0.00020164,2]
[373169276,1752888715452,-480.0,0.00020164,2]
[373169277,1752888715462,-480.0,0.00020164,2]
[373169278,1752888715472,-402.11167356,0.00020164,2]
[373169279,1752888715482,-480.0,0.00020164,2]
[373169280,1752888715492,-642.55,0.00020164,2]
[373169281,1752888715501,-480.0,0.00020164,2]
[373169282,1752888715511,-645.39,0.00020164,2]
[373169283,1752888715520,-480.0,0.00020164,2]
[373169284,1752888715530,-480.0,0.00020164,2]
[373169285,1752888715540,-1675.21,0.00020164,2]
[373169286,1752888715550,-1344.15,0.00020164,2]
[373169287,1752888715559,-656.42,0.00020164,2]
[373169288,1752888715569,-1024.03,0.00020164,2]
[373169289,1752888715579,-2380.94,0.00020164,2]
[373169290,1752888715589,-565.56,0.00020164,2]
[373169291,1752888715599,-2595.14,0.00020164,2]
[373169292,1752888715609,-1145.56,0.00020164,2]
[373169293,1752888715619,-480.0,0.00020164,2]
[373169294,1752888715628,-480.0,0.00020164,2]
[373169295,1752888715638,-6879.99,0.00020164,2]
[373169296,1752888715647,-904.05,0.00020164,2]
[373169297,1752888715657,-2324.72,0.00020164,2]
[373169298,1752888715667,-1167.24,0.00020164,2]
[373169299,1752888715678,-657.5,0.00020164,2]
[373169300,1752888715688,-480.0,0.00020164,2]
[373169301,1752888715698,-480.0,0.00020164,2]
[373169302,1752888715708,-2058.15,0.00020164,2]
[373169303,1752888715718,-2293.05,0.00020164,2]
[373169304,1752888715728,-1846.36,0.00020164,2]
[373169305,1752888715739,-480.0,0.00020164,2]
[373169306,1752888715749,-480.0,0.00020164,2]
[373169307,1752888715759,-480.0,0.00020164,2]
[373169308,1752888715769,-784.99,0.00020164,2]
[373169309,1752888715779,-480.0,0.00020164,2]
[373169310,1752888715790,-1787.76,0.00020164,2]
[373169311,1752888715800,-694.6,0.00020164,2]
[373169312,1752888715809,-2668.26,0.00020164,2]
[373169313,1752888715819,-1118.66,0.00020164,2]
[373169314,1752888715830,-480.0,0.00020164,2]
[373169315,1752888715840,-745.51,0.00020164,2]
[373169316,1752888715850,-3471.23,0.00020164,2]
[373169317,1752888715860,-6088.28,0.00020164,2]
[373169318,1752888715871,-480.0,0.00020164,2]
[373169319,1752888715883,-1379.76,0.00020164,2]
[373169320,1752888715893,-2501.63,0.00020164,2]
[373169321,1752888715903,-864.56127318,0.00020174,2]
[373169322,1752888715913,-301.3,0.00020186,2]
[373169323,1752888715923,-150.0,0.00020187,2]
[373169324,1752888715933,-1325.0,0.00020191,2]
[373169325,1752888715942,-2000.0,0.00020199,2]
[373169326,1752888715952,-168.23,0.00020205,2]
[373169327,1752888715962,-350.0,0.00020263,2]
[373169328,1752888715972,-500.0,0.00020263,2]
[373169329,1752888715981,-501.08708536,0.00020263,2]
[373169330,1752888715991,-150.0,0.00020263,2]
[373169331,1752888716002,-251.92304662,0.00020263,2]
[373169332,1752888716012,-150.0,0.00020263,2]
[373169333,1752888716022,-350.0,0.00020263,2]
[373169334,1752888716032,-500.0,0.00020263,2]
[373169335,1752888716041,-822.0,0.00020263,2]
[373169336,1752888716051,-500.0,0.00020263,2]
[373169337,1752888716060,-3307.0,0.00020263,2]
[373169338,1752888716070,-963.0,0.00020263,2]
[373169339,1752888716080,-236.49445838,0.00020263,2]
[373169340,1752888716090,-500.0,0.00020263,2]
[373169341,1752888716100,-200.0,0.00020263,2]
[373169342,1752888716109,-500.0,0.00020263,2]
[373169343,1752888716119,-251.60952293,0.00020263,2]
[373169344,1752888716132,-500.0,0.00020263,2]
[373169345,1752888716142,-500.0,0.00020263,2]
[373169346,1752888716152,-1500.0,0.00020268,2]
[373169347,1752888716165,-480.0,0.00020273,2]
[373169348,1752888716175,-480.0,0.00020273,2]
[373169349,1752888716186,-480.0,0.00020273,2]
[373169350,1752888716196,-480.0,0.00020273,2]
[373169351,1752888716207,-480.0,0.00020273,2]
[373169352,1752888716216,-480.0,0.00020273,2]
[373169353,1752888716226,-480.0,0.00020273,2]
[373169354,1752888716236,-480.0,0.00020273,2]
[373169355,1752888716245,-526.77,0.00020273,2]
[373169356,1752888716255,-480.0,0.00020273,2]
[373169357,1752888716265,-522.6,0.00020273,2]
[373169358,1752888716275,-260.65,0.00020273,2]
[373169359,1752888716285,-531.64,0.00020273,2]
[373169360,1752888716295,-480.0,0.00020273,2]
[373169361,1752888716304,-480.0,0.00020273,2]
[373169362,1752888716314,-480.0,0.00020273,2]
[373169363,1752888716324,-506.35,0.00020273,2]
[373169364,1752888716334,-480.0,0.00020273,2]
[373169365,1752888716345,-480.0,0.00020273,2]
[373169366,1752888716355,-792.99,0.00020273,2]
[373169367,1752888716364,-480.0,0.00020273,2]
[373169368,1752888716375,-480.0,0.00020273,2]
[373169369,1752888716385,-480.0,0.00020273,2]
[373169370,1752888716395,-659.27,0.00020273,2]
[373169371,1752888716405,-879.89,0.00020273,2]
[373169372,1752888716415,-447.19429883,0.00020273,2]
[373169373,1752888716424,-480.0,0.00020273,2]
[373169374,1752888716435,-480.0,0.00020273,2]
[373169375,1752888716445,-480.0,0.00020273,2]
[373169376,1752888716455,-849.49,0.00020273,2]
[373169377,1752888716464,-1314.83,0.00020273,2]
[373169378,1752888716474,-374.34,0.00020273,2]
[373169379,1752888716484,-1260.04,0.00020273,2]
[373169380,1752888716494,-410.27341889,0.00020273,2]
[373169381,1752888716504,-480.0,0.00020273,2]
[373169382,1752888716514,-480.0,0.00020273,2]
[373169383,1752888716523,-524.26,0.00020273,2]
[373169384,1752888716534,-664.17,0.00020273,2]
[373169385,1752888716543,-914.42,0.00020273,2]
[373169386,1752888716553,-480.0,0.00020273,2]
[373169387,1752888716563,-655.69,0.00020273,2]
[373169388,1752888716573,-480.0,0.00020273,2]
[373169389,1752888716583,-644.27,0.00020273,2]
[373169390,1752888716593,-840.85,0.00020273,2]
[373169391,1752888716603,-480.0,0.00020273,2]
[373169392,1752888716612,-617.21,0.00020273,2]
[373169393,1752888716622,-611.79,0.00020273,2]
[373169394,1752888716632,-480.0,0.00020273,2]
[373169395,1752888716642,-480.0,0.00020273,2]
[373169396,1752888716652,-631.4,0.00020273,2]
[373169397,1752888716662,-222.6222566,0.00020273,2]
[373169398,1752888716672,-667.12,0.00020273,2]
[373169399,1752888716683,-480.0,0.00020273,2]
[373169400,1752888716692,-998.16,0.00020273,2]
[373169401,1752888716702,-480.0,0.00020273,2]
[373169402,1752888716712,-480.0,0.00020273,2]
[373169403,1752888716933,-485.49,0.00020273,2]
[373169404,1752888716944,-877.71,0.00020273,2]
[373169405,1752888716954,-480.0,0.00020273,2]
[373169406,1752888716963,-620.18,0.00020273,2]
[373169407,1752888716973,-480.0,0.00020273,2]
[373169408,1752888716982,-881.24,0.00020273,2]
[373169409,1752888716991,-574.92,0.00020273,2]
[373169410,1752888717001,-502.0,0.00020273,2]
[373169411,1752888717011,-521.42,0.00020273,2]
[373169412,1752888717020,-481.46,0.00020273,2]
[373169413,1752888717029,-480.0,0.00020273,2]
[373169414,1752888717038,-578.28,0.00020273,2]
[373169415,1752888717048,-1069.98,0.00020273,2]
[373169416,1752888717057,-918.24,0.00020273,2]
[373169417,1752888717066,-480.0,0.00020273,2]
[373169418,1752888717076,-696.46,0.00020273,2]
[373169419,1752888717085,-568.95,0.00020273,2]
[373169420,1752888717094,-920.75,0.00020273,2]
[373169421,1752888717104,-582.29,0.00020273,2]
[373169422,1752888717113,-716.53,0.00020273,2]
[373169423,1752888717122,-585.79,0.00020273,2]
[373169424,1752888717131,-495.19,0.00020273,2]
[373169425,1752888717140,-830.19,0.00020273,2]
[373169426,1752888717149,-4174.88,0.00020273,2]
[373169427,1752888717161,-650.56,0.00020273,2]
[373169428,1752888717171,-835.95,0.00020273,2]
[373169429,1752888717182,-480.0,0.00020273,2]
[373169430,1752888717191,-933.22,0.00020273,2]
[373169431,1752888717200,-480.0,0.00020273,2]
[373169432,1752888717210,-480.0,0.00020273,2]
[373169433,1752888717219,-569.06,0.00020273,2]
[373169434,1752888717228,-602.69,0.00020273,2]
[373169435,1752888717237,-480.0,0.00020273,2]
[373169436,1752888717246,-621.28,0.00020273,2]
[373169437,1752888717255,-480.0,0.00020273,2]
[373169438,1752888717264,-480.0,0.00020273,2]
[373169439,1752888717273,-1447.89,0.00020273,2]
[373169440,1752888717283,-399.8,0.00020273,2]
[373169441,1752888717292,-910.53,0.00020273,2]
[373169442,1752888717301,-480.0,0.00020273,2]
[373169443,1752888717311,-1081.58,0.00020273,2]
[373169444,1752888717321,-588.15,0.00020273,2]
[373169445,1752888717331,-480.0,0.00020273,2]
[373169446,1752888717340,-480.0,0.00020273,2]
[373169447,1752888717351,-480.0,0.00020273,2]
[373169448,1752888717360,-480.0,0.00020273,2]
[373169449,1752888717369,-480.0,0.00020273,2]
[373169450,1752888717379,-480.0,0.00020273,2]
[373169451,1752888717390,-480.0,0.00020273,2]
[373169452,1752888717399,-3061.9,0.00020273,2]
[373169453,1752888717410,-650.55,0.00020273,2]
[373169454,1752888717421,-480.0,0.00020273,2]
[373169455,1752888717432,-765.38,0.00020273,2]
[373169456,1752888717441,-590.15,0.00020273,2]
[373169457,1752888717451,-730.13,0.00020273,2]
[373169458,1752888717461,-564.9,0.00020273,2]
[373169459,1752888717471,-480.0,0.00020273,2]
[373169460,1752888717482,-779.26,0.00020273,2]
[373169461,1752888717492,-1273.31,0.00020273,2]
[373169462,1752888717501,-480.0,0.00020273,2]
[373169463,1752888717512,-493.88,0.00020273,2]
[373169464,1752888717525,-480.0,0.00020273,2]
[373169465,1752888717535,-856.25,0.00020273,2]
[373169466,1752888717545,-1090.52,0.00020273,2]
[373169467,1752888717555,-480.0,0.00020273,2]
[373169468,1752888717566,-1533.88,0.00020273,2]
[373169469,1752888717576,-497.14,0.00020273,2]
[373169470,1752888717587,-761.08,0.00020273,2]
[373169471,1752888717596,-590.77,0.00020273,2]
[373169472,1752888717605,-480.0,0.00020273,2]
[373169473,1752888717615,-396.75416526,0.00020273,2]
[373169474,1752888717624,-572.66,0.00020273,2]
[373169475,1752888717634,-480.0,0.00020273,2]
[373169476,1752888717644,-982.44,0.00020273,2]
[373169477,1752888717654,-1780.4,0.00020273,2]
[373169478,1752888717663,-583.37,0.00020273,2]
[373169479,1752888717673,-553.32229942,0.00020273,2]
[373169480,1752888717684,-932.52,0.00020273,2]
[373169481,1752888717694,-566.63,0.00020273,2]
[373169482,1752888717704,-480.0,0.00020273,2]
[373169483,1752888717714,-568.61,0.00020273,2]
[373169484,1752888717724,-607.81,0.00020273,2]
[373169485,1752888717733,-576.95,0.00020273,2]
[373169486,1752888717743,-696.38,0.00020273,2]
[373169487,1752888717752,-1155.68,0.00020273,2]
[373169488,1752888717762,-496.58,0.00020273,2]
[373169489,1752888717771,-709.78,0.00020273,2]
[373169490,1752888717781,-480.0,0.00020273,2]
[373169491,1752888717792,-724.41,0.00020273,2]
[373169492,1752888717803,-480.0,0.00020273,2]
[373169493,1752888717812,-719.42,0.00020273,2]
[373169494,1752888717821,-480.0,0.00020273,2]
[373169495,1752888717831,-640.67,0.00020273,2]
[373169496,1752888717841,-487.25,0.00020273,2]
[373169497,1752888717850,-480.0,0.00020273,2]
[373169498,1752888717860,-480.0,0.00020273,2]
[373169499,1752888717869,-480.0,0.00020273,2]
[373169500,1752888717879,-495.49,0.00020273,2]
[373169501,1752888717888,-480.0,0.00020273,2]
[373169502,1752888717898,-1078.16,0.00020273,2]
[373169503,1752888717908,-480.0,0.00020273,2]
[373169504,1752888717917,-3131.25,0.00020273,2]
[373169505,1752888717927,-480.0,0.00020273,2]
[373169506,1752888717941,-480.0,0.00020273,2]
[373169507,1752888717950,-480.0,0.00020273,2]
[373169508,1752888717960,-706.8,0.00020273,2]
[373169509,1752888717970,-898.9,0.00020273,2]
[373169510,1752888717980,-553.3,0.00020273,2]
[373169511,1752888717990,-2995.02,0.00020273,2]
[373169512,1752888718001,-871.17,0.00020273,2]
[373169513,1752888718011,-3995.22,0.00020273,2]
[373169514,1752888718021,-480.0,0.00020273,2]
[373169515,1752888718031,-480.0,0.00020273,2]
[373169516,1752888718041,-1013.99,0.00020273,2]
[373169517,1752888718051,-612.82,0.00020273,2]
[373169518,1752888718061,-480.0,0.00020273,2]
[373169519,1752888718071,-1340.32,0.00020273,2]
[373169520,1752888718081,-5464.38,0.00020273,2]
[373169521,1752888718091,-1855.61,0.00020273,2]
[373169522,1752888718100,-823.03,0.00020273,2]
[373169523,1752888718110,-480.0,0.00020273,2]
[373169524,1752888718119,-1917.13,0.00020273,2]
[373169525,1752888718129,-1681.6,0.00020273,2]
[373169526,1752888718139,-720.52,0.00020273,2]
[373169527,1752888718149,-528.33,0.00020273,2]
[373169528,1752888718161,-1252.73,0.00020273,2]
[373169529,1752888718171,-13559.65,0.00020273,2]
[373169530,1752888718183,-968.31,0.00020273,2]
[373169531,1752888718193,-791.37,0.00020273,2]
[373169532,1752888718203,-875.72,0.00020273,2]
[373169533,1752888718212,-509.77,0.00020273,2]
[373169534,1752888718222,-480.0,0.00020273,2]
[373169535,1752888718231,-480.0,0.00020273,2]
[373169536,1752888718243,-535.75,0.00020273,2]
[373169537,1752888718253,-802.98,0.00020273,2]
[373169538,1752888718263,-1032.63,0.00020273,2]
[373169539,1752888718273,-1005.17,0.00020273,2]
[373169540,1752888718283,-1082.65,0.00020273,2]
[373169541,1752888718293,-480.0,0.00020273,2]
[373169542,1752888718302,-480.0,0.00020273,2]
[373169543,1752888718311,-969.04,0.00020273,2]
[373169544,1752888718320,-480.0,0.00020273,2]
[373169545,1752888718331,-805.13,0.00020273,2]
[373169546,1752888718341,-1629.45,0.00020273,2]
[373169547,1752888718350,-1066.81,0.00020273,2]
[373169548,1752888718359,-4796.86,0.00020273,2]
[373169549,1752888718369,-480.0,0.00020273,2]
[373169550,1752888718378,-1514.35,0.00020273,2]
[373169551,1752888718387,-480.0,0.00020273,2]
[373169552,1752888718397,-480.0,0.00020273,2]
[373169553,1752888718406,-1021.81,0.00020273,2]
[373169554,1752888718415,-3566.89,0.00020273,2]
[373169555,1752888718425,-1603.75,0.00020273,2]
[373169556,1752888718436,-480.0,0.00020273,2]
[373169557,1752888718446,-821.44,0.00020273,2]
[373169558,1752888718455,-821.18,0.00020273,2]
[373169559,1752888718464,-2490.92,0.00020273,2]
[373169560,1752888718475,-604.7,0.00020273,2]
[373169561,1752888718484,-3087.9,0.00020273,2]
[373169562,1752888718495,-1634.05,0.00020273,2]
[373169563,1752888718505,-1748.84,0.00020273,2]
[373169564,1752888718520,-970.72,0.00020273,2]
[373169565,1752888718530,-532.91,0.00020273,2]
[373169566,1752888718541,-1915.86,0.00020273,2]
[373169567,1752888718551,-1057.88,0.00020273,2]
[373169568,1752888718564,-480.0,0.00020273,2]
[373169569,1752888718575,-603.46,0.00020273,2]
[373169570,1752888718585,-480.0,0.00020273,2]
[373169571,1752888718595,-480.0,0.00020273,2]
[373169572,1752888718604,-2279.02,0.00020273,2]
[373169573,1752888718614,-480.0,0.00020273,2]
[373169574,1752888718625,-480.0,0.00020273,2]
[373169575,1752888718636,-2361.11,0.00020273,2]
[373169576,1752888718645,-828.8,0.00020273,2]
[373169577,1752888718655,-480.0,0.00020273,2]
[373169578,1752888718665,-1303.91,0.00020273,2]
[373169579,1752888718674,-825.18,0.00020273,2]
[373169580,1752888718684,-1096.8,0.00020273,2]
[373169581,1752888718694,-566.27,0.00020273,2]
[373169582,1752888718703,-564.95,0.00020273,2]
[373169583,1752888718713,-494.97,0.00020273,2]
[373169584,1752888718722,-480.0,0.00020273,2]
[373169585,1752888718732,-1813.24,0.00020273,2]
[373169586,1752888718742,-1571.61,0.00020273,2]
[373169587,1752888718751,-480.0,0.00020273,2]
[373169588,1752888718762,-5046.27,0.00020273,2]
[373169589,1752888718772,-962.21,0.00020273,2]
[373169590,1752888718781,-868.4,0.00020273,2]
[373169591,1752888718791,-2145.47,0.00020273,2]
[373169592,1752888718800,-480.0,0.00020273,2]
[373169593,1752888718809,-520.74,0.00020273,2]
[373169594,1752888718819,-2324.63,0.00020273,2]
[373169595,1752888718828,-680.56,0.00020273,2]
[373169596,1752888718837,-480.0,0.00020273,2]
[373169597,1752888718846,-977.92,0.00020273,2]
[373169598,1752888718856,-1859.22,0.00020273,2]
[373169599,1752888718865,-698.05,0.00020273,2]
[373169600,1752888718875,-2000.63,0.00020273,2]
[373169601,1752888718884,-566.02,0.00020273,2]
[373169602,1752888718894,-1464.48,0.00020273,2]
[373169603,1752888718903,-480.0,0.00020273,2]
[373169604,1752888718913,-1622.47,0.00020273,2]
[373169605,1752888718922,-4391.98,0.00020273,2]
[373169606,1752888718933,-1223.86,0.00020273,2]
[373169607,1752888718943,-526.96,0.00020273,2]
[373169608,1752888718956,-962.59,0.00020273,2]
[373169609,1752888718966,-1497.68,0.00020273,2]
[373169610,1752888718976,-532.95,0.00020273,2]
[373169611,1752888718985,-3188.33,0.00020273,2]
[373169612,1752888718995,-1945.01,0.00020273,2]
[373169613,1752888719004,-1016.89,0.00020273,2]
[373169614,1752888719014,-817.83,0.00020273,2]
[373169615,1752888719024,-8208.97,0.00020273,2]
[373169616,1752888719033,-878.55,0.00020273,2]
[373169617,1752888719042,-1589.38,0.00020273,2]
[373169618,1752888719052,-2919.23,0.00020273,2]
[373169619,1752888719061,-800.44,0.00020273,2]
[373169620,1752888719071,-2236.36,0.00020273,2]
[373169621,1752888719081,-480.0,0.00020273,2]
[373169622,1752888719090,-3984.11,0.00020273,2]
[373169623,1752888719100,-480.0,0.00020273,2]
[373169624,1752888719110,-480.0,0.00020273,2]
[373169625,1752888719119,-1183.06,0.00020273,2]
[373169626,1752888719129,-480.0,0.00020273,2]
[373169627,1752888719139,-725.36,0.00020273,2]
[373169628,1752888719148,-2117.64,0.00020273,2]
[373169629,1752888719159,-480.0,0.00020273,2]
[373169630,1752888719170,-2173.08,0.00020273,2]
[373169631,1752888719180,-2731.47,0.00020273,2]
[373169632,1752888719190,-1978.38,0.00020273,2]
[373169633,1752888719200,-531.72,0.00020273,2]
[373169634,1752888719210,-555.35,0.00020273,2]
[373169635,1752888719219,-480.0,0.00020273,2]
[373169636,1752888719229,-2481.37,0.00020273,2]
[373169637,1752888719240,-1343.88,0.00020273,2]
[373169638,1752888719250,-728.91,0.00020273,2]
[373169639,1752888719260,-480.0,0.00020273,2]
[373169640,1752888719269,-480.0,0.00020273,2]
[373169641,1752888719279,-560.64,0.00020273,2]
[373169642,1752888719288,-585.12,0.00020273,2]
[373169643,1752888719297,-508.37,0.00020273,2]
[373169644,1752888719306,-3388.13,0.00020273,2]
[373169645,1752888719315,-1149.78,0.00020273,2]
[373169646,1752888719325,-891.26,0.00020273,2]
[373169647,1752888719335,-2906.59,0.00020273,2]
[373169648,1752888719344,-1185.44,0.00020273,2]
[373169649,1752888719354,-480.0,0.00020273,2]
[373169650,1752888719363,-2035.15,0.00020273,2]
[373169651,1752888719373,-748.68,0.00020273,2]
[373169652,1752888719382,-998.17,0.00020273,2]
[373169653,1752888719391,-1381.67,0.00020273,2]
[373169654,1752888719400,-1441.68,0.00020273,2]
[373169655,1752888719411,-994.6,0.00020273,2]
[373169656,1752888719422,-523.26,0.00020273,2]
[373169657,1752888719433,-480.0,0.00020273,2]
[373169658,1752888719443,-480.0,0.00020273,2]
[373169659,1752888719452,-2381.44,0.00020273,2]
[373169660,1752888719461,-615.01,0.00020273,2]
[373169661,1752888719471,-480.0,0.00020273,2]
[373169662,1752888719482,-6547.29,0.00020273,2]
[373169663,1752888719492,-2219.69,0.00020273,2]
[373169664,1752888719502,-574.05,0.00020273,2]
[373169665,1752888719511,-781.22,0.00020273,2]
[373169666,1752888719521,-480.0,0.00020273,2]
[373169667,1752888719532,-1256.0,0.00020273,2]
[373169668,1752888719543,-34456.48,0.00020273,2]
[373169669,1752888719553,-5876.53,0.00020273,2]
[373169670,1752888719563,-756.65,0.00020273,2]
[373169671,1752888719572,-779.84,0.00020273,2]
[373169672,1752888719581,-1885.62,0.00020273,2]
[373169673,1752888719591,-1843.88,0.00020273,2]
[373169674,1752888719600,-1063.27,0.00020273,2]
[373169675,1752888719609,-879.53,0.00020273,2]
[373169676,1752888719619,-902.36,0.00020273,2]
[373169677,1752888719628,-1098.83,0.00020273,2]
[373169678,1752888719638,-3926.79,0.00020273,2]
[373169679,1752888719647,-531.39,0.00020273,2]
[373169680,1752888719656,-1334.35,0.00020273,2]
[373169681,1752888719666,-4173.98,0.00020273,2]
[373169682,1752888719675,-1112.34,0.00020273,2]
[373169683,1752888719686,-1019.75,0.00020273,2]
[373169684,1752888719695,-531.52,0.00020273,2]
[373169685,1752888719704,-878.37,0.00020273,2]
[373169686,1752888719714,-4040.09,0.00020273,2]
[373169687,1752888719723,-536.67,0.00020273,2]
[373169688,1752888719733,-1009.72,0.00020273,2]
[373169689,1752888719742,-1164.19,0.00020273,2]
[373169690,1752888719752,-1912.01,0.00020273,2]
[373169691,1752888719761,-3332.41,0.00020273,2]
[373169692,1752888719771,-480.0,0.00020273,2]
[373169693,1752888719780,-1204.49,0.00020273,2]
[373169694,1752888719789,-480.0,0.00020273,2]
[373169695,1752888719798,-2333.35,0.00020273,2]
[373169696,1752888719807,-480.0,0.00020273,2]
[373169697,1752888719817,-480.0,0.00020273,2]
[373169698,1752888719826,-480.0,0.00020273,2]
[373169699,1752888719836,-642.55,0.00020273,2]
[373169700,1752888719845,-480.0,0.00020273,2]
[373169701,1752888719854,-645.39,0.00020273,2]
[373169702,1752888719865,-480.0,0.00020273,2]
[373169703,1752888719874,-480.0,0.00020273,2]
[373169704,1752888719883,-1675.21,0.00020273,2]
[373169705,1752888719892,-1344.15,0.00020273,2]
[373169706,1752888719902,-656.42,0.00020273,2]
[373169707,1752888719911,-1024.03,0.00020273,2]
[373169708,1752888719920,-2380.94,0.00020273,2]
[373169709,1752888719930,-565.56,0.00020273,2]
[373169710,1752888719940,-2595.14,0.00020273,2]
[373169711,1752888719949,-1145.56,0.00020273,2]
[373169712,1752888719959,-480.0,0.00020273,2]
[373169713,1752888719970,-480.0,0.00020273,2]
[373169714,1752888719979,-6879.99,0.00020273,2]
[373169715,1752888719988,-904.05,0.00020273,2]
[373169716,1752888719997,-2324.72,0.00020273,2]
[373169717,1752888720007,-1167.24,0.00020273,2]
[373169718,1752888720017,-657.5,0.00020273,2]
[373169719,1752888720026,-480.0,0.00020273,2]
[373169720,1752888720036,-480.0,0.00020273,2]
[373169721,1752888720046,-2058.15,0.00020273,2]
[373169722,1752888720058,-2293.05,0.00020273,2]
[373169723,1752888720068,-1846.36,0.00020273,2]
[373169724,1752888720079,-480.0,0.00020273,2]
[373169725,1752888720090,-480.0,0.00020273,2]
[373169726,1752888720101,-480.0,0.00020273,2]
[373169727,1752888720112,-784.99,0.00020273,2]
[373169728,1752888720123,-480.0,0.00020273,2]
[373169729,1752888720132,-1787.76,0.00020273,2]
[373169730,1752888720142,-694.6,0.00020273,2]
[373169731,1752888720151,-2668.26,0.00020273,2]
[373169732,1752888720161,-1118.66,0.00020273,2]
[373169733,1752888720171,-576.14440454,0.00020273,2]
[373169734,1752888720181,-745.51,0.00020273,2]
[373169735,1752888720192,-3471.23,0.00020273,2]
[373169736,1752888720203,-6088.28,0.00020273,2]
[373169737,1752888720212,-480.0,0.00020273,2]
[373169738,1752888720222,-1379.76,0.00020273,2]
[373169739,1752888720231,-2501.63,0.00020273,2]
[373169740,1752888720242,-500.0,0.00020274,2]
[373169741,1752888720252,-162.380719,0.00020274,2]
[373169742,1752888720261,-23809.18,0.0002028,10]
[373169743,1752888720271,-180.0,0.000203,2]
[373169744,1752888720280,-1000.0,0.00020312,2]
[373169745,1752888720289,-260.87830655,0.00020355,2]
[373169746,1752888720299,-480.0,0.00020383,2]
[373169747,1752888720308,-480.0,0.00020383,2]
[373169748,1752888720318,-480.0,0.00020383,2]
[373169749,1752888720328,-480.0,0.00020383,2]
[373169750,1752888720338,-480.0,0.00020383,2]
[373169751,1752888720347,-480.0,0.00020383,2]
[373169752,1752888720357,-480.0,0.00020383,2]
[373169753,1752888720366,-480.0,0.00020383,2]